Cogmind - Beta 15 @@@ ROGUE MODE // 2025.05.30 @ 05:40:27 Player: BionicBot Result: Destroyed by Y-45 Defender with Heavy Assault Rifle Performance ------------- Evolutions (1) 500 Regions Visited (3) 600 Robots Destroyed (8) 40 Value Destroyed (196) 196 Prototype IDs (1) 20 Alien Tech Used (0) 0 Bonus (200) 200 TOTAL SCORE: 1556 Bonus ------- Pacifist 200 Cogmind --------- Core Integrity 0/400 Matter 10/300 Energy 100/100 System Corruption 7% Temperature Cool (0) Movement Core (50) Location -9/Storage Parts ------- > --- POWER (1) -------- (None) > --- PROPULSION (3) --- (None) > --- UTILITY (3) ------ Experimental Targeting Computer > --- WEAPON (2) ------- (None) > --- INVENTORY (5) ---- Rocket Launcher Peak State ------------ > --- POWER ------------ (None) > --- PROPULSION ------- (None) > --- UTILITY ---------- Experimental Targeting Computer > --- WEAPON ----------- (None) > --- INVENTORY -------- Rocket Launcher [Rating: 6] Favorites ----------- Power None Propulsion None Utility Experimental Targeting Computer Processor Experimental Targeting Computer Weapon Rocket Launcher Launcher Rocket Launcher Build | -11 -10 -9 -9 ------- Run | Yrd Mat Mat Sto Slots Evolved 2 | . . 2 . Power . | . . . . Propulsion 1 | . . 1 . Utility 1 | . . 1 . Weapon . | . . . . Parts Attached 2 | . . . 2 Power . | . . . . Engine . | . . . . Core . | . . . . Reactor . | . . . . Propulsion . | . . . . Treads . | . . . . Leg . | . . . . Wheel . | . . . . Hover . | . . . . Flight . | . . . . Utility 1 | . . . 1 Device . | . . . . Storage . | . . . . Processor 1 | . . . 1 Hackware . | . . . . Protection . | . . . . Artifact . | . . . . Weapon 1 | . . . 1 Energy Gun . | . . . . Energy Cannon . | . . . . Ballistic Gun . | . . . . Ballistic Cannon . | . . . . Launcher 1 | . . . 1 Special Weapon . | . . . . Impact Weapon . | . . . . Slashing Weapon . | . . . . Piercing Weapon . | . . . . Special Melee Weapon . | . . . . Unidentified Prototypes 1 | . . . 1 Parts Lost . | . . . . Power . | . . . . Propulsion . | . . . . Utility . | . . . . Weapon . | . . . . Highest Loss Streak . | . . . . To Critical Strikes . | . . . . Average Backups . | . . . . Power . | . . . . Propulsion . | . . . . Utility . | . . . . Weapon . | . . . . Tool/Special . | . . . . Unused Backups . | . . . . Power . | . . . . Propulsion . | . . . . Utility . | . . . . Weapon . | . . . . Tool/Special . | . . . . Average Slot Usage (%) 1 | . . . 1 Launcher 1 | . . . 1 Peak Build Rating 6 | . . . 6 Average Rating . | . . . . On Entrance . | . . . . Naked Turns 337 | . 37 18 282 Heaviest Build 4 | . . . 4 Greatest Support 3 | 3 3 3 3 Greatest Overweight (x) 1 | . . . 1 Average Overweight (x) . | . . . . Largest Inventory Capacity 5 | 5 5 5 5 Average Capacity 5 | 5 5 5 5 Most Carried 1 | . . . 1 Average Carried . | . . . . Final Capacity 5 | 5 5 5 5 Final Carried 1 | . . . 1 Class Distribution -------------------- 100% | Mutant Dominant Class ---------------- Mutant | -10/Materials Mutant | -9/Materials Mutant | -9/Storage Resources | -11 -10 -9 -9 ----------- Run | Yrd Mat Mat Sto Matter Collected . | . . . . Remotely . | . . . . Salvage Created 136 | . . . 136 Parts 4 | . . . 4 Haulers Intercepted . | . . . . Recyclers Shooed 1 | . . . 1 Parts Field Recycled . | . . . . Retrieved Matter . | . . . . Parts Self-Destructed . | . . . . Prevented . | . . . . Kills | -11 -10 -9 -9 ------- Run | Yrd Mat Mat Sto Combat Hostiles Destroyed 7 | . . . 7 AOE 7 | . . . 7 Classes Destroyed 4 | . . . 4 Recycler 1 | . . . 1 Swarmer 3 | . . . 3 Grunt 3 | . . . 3 Sentry 1 | . . . 1 Best Kill Streak 8 | . . . 8 Combat Bots Only 7 | . . . 7 Max Kills in Single Turn 2 | . . . 2 Gunslinging . | . . . . Exploded 2 | . . . 2 Melee . | . . . . Uniques/NPCs Destroyed . | . . . . Combat | -11 -10 -9 -9 -------- Run | Yrd Mat Mat Sto Hostile Shots Fired 76 | . 7 4 65 Missed 35 | . 1 2 32 Hits 41 | . 6 2 33 Projectile 41 | . 6 2 33 Damage Taken 522 | . 49 23 450 Core 455 | . 49 23 383 Absorbed by Shields . | . . . . Core Remaining (%) 90 | 100 80 . . Volleys Fired 8 | . . . 8 Largest 1 | . . . 1 Hottest 33 | . . . 33 Shots Fired 8 | . . . 8 Gun . | . . . . Cannon . | . . . . Launcher 8 | . . . 8 Special . | . . . . Kinetic . | . . . . Thermal . | . . . . Explosive 8 | . . . 8 Electromagnetic . | . . . . Robot Hit Streak 2 | . . . 2 Robot Miss Streak 2 | . . . 2 Penetration Max . | . . . . Secondary Targets . | . . . . Shots Hit Robots 3 | . . . 3 Core Hits 15 | . . . 15 Critical Kills . | . . . . Critical Parts Destroyed . | . . . . Critical Strikes . | . . . . Melee Attacks . | . . . . Impact . | . . . . Slashing . | . . . . Piercing . | . . . . Sneak Attacks . | . . . . Combat Hostiles . | . . . . Follow-up Attacks . | . . . . Damage Inflicted 673 | . . . 673 Guns . | . . . . Cannons . | . . . . Explosions 656 | . . . 656 Melee . | . . . . Ramming 17 | . . . 17 Kinetic . | . . . . Thermal . | . . . . Explosive 656 | . . . 656 Electromagnetic . | . . . . Impact . | . . . . Slashing . | . . . . Piercing . | . . . . Highest Corruption 7 | . . . 7 Average Corruption 4 | . . . 4 Corruption Purged . | . . . . Corruption Blocked . | . . . . Effects 3 | . . . 3 Message Errors 1 | . . . 1 Matter Fused 1 | . . . 1 Data Loss (minor) 1 | . . . 1 Overload Shots . | . . . . Overflow Damage 12 | . . . 12 Projectiles . | . . . . Explosions 12 | . . . 12 Melee . | . . . . Knockbacks . | . . . . Impact . | . . . . Kinetic . | . . . . Secondary . | . . . . Self-Inflicted Damage 7 | . . . 7 Shots . | . . . . Rammed 5 | . . . 5 Targets Rammed 5 | . . . 5 Kicked . | . . . . Crushed . | . . . . Highest Temperature 4 | . . . 4 Average Temperature 3 | . . . 3 Received Heat Transfer 141 | . . . 141 Siege Activations . | . . . . Martial Activations . | . . . . Shielding Activations . | . . . . Robots Disrupted . | . . . . Combat Hostiles . | . . . . Robots Corrupted . | . . . . Combat Hostiles . | . . . . Parts Fried . | . . . . Impact Corruptions . | . . . . Robots Melted . | . . . . Combat Hostiles . | . . . . Parts Melted . | . . . . Heat Transferred . | . . . . Parts Sabotaged . | . . . . Parts Stolen . | . . . . Parts Stripped . | . . . . Power Chain Reactions . | . . . . Alert | -11 -10 -9 -9 ------- Run | Yrd Mat Mat Sto Maximum Alert Level 1 | . . . 1 Low Security (%) 82 | 100 100 100 78 Level 1 17 | . . . 21 Level 2 . | . . . . Level 3 . | . . . . Level 4 . | . . . . Level 5 . | . . . . High Security . | . . . . Max Security . | . . . . Peak Influence 227 | . . . 227 Initial . | . . . . Average 134 | . . . 161 Influence Increases 387 | . . . 387 Destroy 0b10 Robot/C 140 | . . . 140 Destroy 0b10 Robot/NC 5 | . . . 5 Destroy Leader 30 | . . . 30 Successful Hack 18 | . . . 18 Destroy Structure 29 | . . . 29 Partial Spotted 15 | . . . 15 Lose Combat Pursuer 150 | . . . 150 Influence Decreases 160 | . . . 160 Time Decay 160 | . . . 160 Squads Dispatched 3 | . . . 3 Investigation . | . . . . Extermination . | . . . . Reinforcement 3 | . . . 3 Assault . | . . . . Garrison . | . . . . Intercept . | . . . . Searches Triggered . | . . . . Construction Impeded . | . . . . Haulers Reinforced . | . . . . Active Scanning Responses . | . . . . Cargo Convoy Interrupts . | . . . . Stealth | -11 -10 -9 -9 --------- Run | Yrd Mat Mat Sto Distress Signals 4 | . . . 4 Communications Jammed . | . . . . Distress Signals . | . . . . Times Spotted 41 | . 7 4 30 Peak Tracking Total 8 | . 7 6 8 Tactical Retreats 6 | . . . 6 Traps | -11 -10 -9 -9 ------- Run | Yrd Mat Mat Sto Traps Triggered 4 | . . . 4 Indirectly . | . . . . Trap Hack Attempts . | . . . . Triggered . | . . . . Disarmed . | . . . . Reprogrammed . | . . . . Reused . | . . . . Traps Extracted . | . . . . Installed . | . . . . Triggered . | . . . . Machines | -11 -10 -9 -9 ---------- Run | Yrd Mat Mat Sto Machines Disabled . | . . . . Max in Single Turn . | . . . . Machines Repaired . | . . . . Machines Dismantled . | . . . . Machines Sabotaged . | . . . . Overloaded Fab Kills . | . . . . Hacking | -11 -10 -9 -9 --------- Run | Yrd Mat Mat Sto Machines Accessed 3 | . . . 3 Terminals 3 | . . . 3 Fabricators . | . . . . Repair Stations . | . . . . Recycling Units . | . . . . Scanalyzers . | . . . . Garrison Access . | . . . . Total Hacks 6 | . . . 6 Successful 4 | . . . 4 Failed 2 | . . . 2 Catastrophic . | . . . . Database Lockouts . | . . . . Manual . | . . . . Terminals 6 | . . . 6 Fabricators . | . . . . Repair Stations . | . . . . Recycling Units . | . . . . Scanalyzers . | . . . . Garrison Access . | . . . . Terminal Hacks 4 | . . . 4 Part Schematic 1 | . . . 1 Open Door 1 | . . . 1 Zone Layout 2 | . . . 2 Fabricator Hacks . | . . . . Repair Station Hacks . | . . . . Recycling Unit Hacks . | . . . . Scanalyzer . | . . . . Garrison Access Hacks . | . . . . Unauthorized Hacks . | . . . . Terminals . | . . . . Fabricators . | . . . . Repair Stations . | . . . . Recycling Units . | . . . . Scanalyzers . | . . . . Garrison Access . | . . . . Data Cores Recovered . | . . . . Used . | . . . . Hacking Detections . | . . . . Full Trace Events . | . . . . Feedback Events . | . . . . Feedback Blocked . | . . . . Robot Schematics Acquired . | . . . . Robots Built . | . . . . Authchips . | . . . . Time . | . . . . Total Robot Build Rating . | . . . . Part Schematics Acquired 1 | . . . 1 Parts Built . | . . . . Authchips . | . . . . Time . | . . . . Total Part Build Rating . | . . . . Parts Repaired . | . . . . Time . | . . . . Parts Recycled . | . . . . Recycled Matter . | . . . . Retrieved Matter . | . . . . Retrieved Components . | . . . . Parts Scanalyzed . | . . . . Part Schematics Acquired . | . . . . Parts Damaged . | . . . . Bothacking | -11 -10 -9 -9 ------------ Run | Yrd Mat Mat Sto Used RIF Installer . | . . . . Robots Hacked . | . . . . Non-combat . | . . . . Combat . | . . . . Robot Hacks Applied . | . . . . Relay Couplers Released . | . . . . Fabnet Peak Effective % . | . . . . Robots Rewired . | . . . . Allies Hacked . | . . . . Hacks Repelled . | . . . . Allies | -11 -10 -9 -9 -------- Run | Yrd Mat Mat Sto Total Allies . | . . . . Largest Group . | . . . . Highest-Rated Group . | . . . . Highest-Rated Ally . | . . . . Total Orders . | . . . . Ally Attacks . | . . . . Total Damage . | . . . . Kills . | . . . . Allies Corrupted . | . . . . Allies Melted . | . . . . Intel | -11 -10 -9 -9 ------- Run | Yrd Mat Mat Sto Active Infowar (turns) . | . . . . Robot Analysis Total . | . . . . Derelict Logs Recovered . | . . . . Drone Launches . | . . . . Drone Recoveries . | . . . . Exploration | -11 -10 -9 -9 ------------- Run | Yrd Mat Mat Sto Turns Passed 393 | 9 37 18 329 Spaces Moved 712 | 18 74 36 584 Core 712 | 18 74 36 584 Treads . | . . . . Legs . | . . . . Wheels . | . . . . Hover . | . . . . Flight . | . . . . Fastest Speed 50 | 50 50 50 50 Average Speed 51 | 50 50 50 51 Slowest Speed 100 | 50 50 50 100 Overloaded Moves . | . . . . Propulsion Burnouts . | . . . . Robots Hopped . | . . . . Potential Cave-ins . | . . . . Cave-ins Triggered . | . . . . Exploration Rate (%) 26 | 3 22 6 75 Regions Visited 3 Branch Regions 1 Pre-discovered Areas . | . . . . Known Exits Taken . | . . . . Unknown Exits Taken 3 | 1 1 1 . Scrap Searched . | . . . . Spaces Dug . | . . . . Terrain Destroyed 33 | . . . 33 Melee . | . . . . Projectile . | . . . . AOE 33 | . . . 33 Terrain Rammed . | . . . . Walls Destroyed . | . . . . Machines Disabled . | . . . . Actions | -11 -10 -9 -9 --------- Run | Yrd Mat Mat Sto Total 728 | 17 73 35 603 Wait 2 | . . . 2 Move 709 | 17 73 35 584 Hop . | . . . . Pick Up 1 | . . . 1 Fast Attach 1 | . . . 1 Attach 1 | . . . 1 Detach 1 | . . . 1 Swap . | . . . . Drop . | . . . . Fire 8 | . . . 8 Melee . | . . . . Ram 5 | . . . 5 Kick . | . . . . Crush . | . . . . Escape Stasis . | . . . . Rewire . | . . . . Trap . | . . . . Miscellaneous . | . . . . Route ------- -11/Scrapyard -10/Materials -9/Materials -9/Storage (discovered 1 exit: [*Mat]) History --------- Turn | Location | Event 3 | -11/Scrapyard | Discovered new exit (range 15) 10 | -11/Scrapyard | Entered Materials 43 | -10/Materials | Discovered new exit (range 8) 47 | -10/Materials | Entered another Materials area 47 | -9/Materials | Evolved 2 slots: Propulsion x1, Utility x1 61 | -9/Materials | Discovered new exit (range 9) 65 | -9/Materials | Entered Storage 133 | -9/Storage | Destroyed 7 combat bots 192 | -9/Storage | Discovered new exit (range 15) 277 | -9/Storage | Core integrity fell below 50% 306 | -9/Storage | Build established: Mutant 356 | -9/Storage | Core integrity fell below 20% 383 | -9/Storage | Found Prototype Processor 383 | -9/Storage | Identified Exp. Targeting Computer 394 | -9/Storage | Destroyed by Y-45 Defender with Heavy Assault Rifle Last Messages --------------- 00231_ Massive razor-sharp blades shoot up from within the floor. 00234_ W-16 Scout sends out distress signal. 00254_ ALERT: Hostiles spotted, dispatching reinforcements to Terminal S012. 00260_ Slammed into A-02 Transporter. 00262_ Destabilizing: System corrupted (+2). 00264_ Slammed into A-02 Transporter. 00268_ K-01 Serf collects debris. 00288_ HT%UAH#P ZPQSZO AWD52UTW08%QFEY 00315_ Slammed into O-16 Technician. 00330_ W-16 Scout sends out distress signal. 00339_ Triggered Shock Trap. 00339_ The floor emits a surge of raw power. 00339_ System corrupted (+2). 00356_ System corrupted: Component data lost. 00381_ Connecting with Door Terminal... >>Open(Door) Sealed Heavy Doors opened. 00383_ Acquired Prototype Processor. 00383_ Identified Exp. Targeting Computer. Map ----- +----------------------------------------------------+ | ??# #? """???????????????# # | | ??# # """???????????????# [# | | ??# # """#??????????????# # ! | | ??# + #??????????????######## | | ??#^ ^# #?????????????????????# | | ??# # ###???????????????????# ##### | | ??# #?"Y"##### #####???????????????# #???# | | ??# #?"""#???# #???????????????# #???# | | ??# #??###???# ###?????????????# #???# | | ??# #????????# """ ""#?????????????# #???# | | ??# #???###### """ Y"#?????????????# #???# | | ??# #???# + """ ""#?????????????# #??? | | ??# #???# #### ##??????????????# ####+## | | ??# #???# #??# """ #???????????????# + | | ??# ##### #??# """ ########### # ### | | ??# #??# """ + # #?? | | ??# #??# ## # #??? | | ??# #??# ## ####### # #???# # | | ??# #########??# ## #???????????# #????## | | ??# #???????"####+##### Y#?#######+###+###???? | | ??# #???????" ### #???? | | ??# #???????" + ! #???? | | ??# #???????"#T##### ### [ [ #???? | | ??# #??????????????# #?# ! #???? | | ??# #????????#####?# #?# #???? | | ??# #######? ?# @ #?# ! ! #???? | | ??# +? """ # Y##################### | | ??# # """ # Y | | ??# # """ + | | ??# + # | | ??#+####### """ # ###########+#########+# | | ? ????? """ # #?????????# T## | | # """ #???? """ + #?????????# ### | | # """ #???? ?#####?????????# #?# """ """ | | # """ #?????# ###???????????????###?# """ """ | | # #??????##?????????????????????# """ """ | | # #????????????????????????????? | | ?######????????????????????????????????####### | | | | | | | | | | | | | | | | | | | | | | | | | +----------------------------------------------------+ Best States ------------- Heat Dissipation 28 Energy Generation 5 Energy Capacity 100 Matter Stores 100 Matter Capacity 300 Sight Range 16 Terrain Scan Density 10 Evasion (%) 50 Targeting Accuracy 12 Item Schematics ----------------- VTOL Module | -9/Storage | Hacked Robot Schematics ------------------ None Fabricated ------------ Nothing Repaired ---------- Nothing Alien Tech Used ----------------- None Achievements -------------- None Challenges ------------ None Game ------ Seed MicroLatentBroadsword Manual? 0 Play Time 00:07:50 Cumulative 220.6 hours Start 2025.05.30 @ 05:36:03 End 2025.05.30 @ 05:40:27 Sessions 1 Manual Loads 0 Difficulty Rogue Special Mode None Game No. 162 Rogue 162 Adventurer 0 Explorer 0 Win Type - Total 8 Types 7/0/1/0/0/0/0/0/0/0 Lore% 55 Gallery% 58 Achievement% 59 Wizard Run 0 Options --------- Layout 0 ASCII 0 Keyboard 1 Movement Numpad Keybinds 0 Fullscreen 2 Font 24/Smallcaps Map View 76x50 Zoom Use 0% Tactical HUD 1 Map Filters NONE Filters NONE Steam 1 RUN: 7d506f6c-9241-4559-8374-1e1deec02f37